fUST/lending_fUST_20240907
["ID","MTS","AMOUNT","RATE_DAILY","PERIOD"]
[337484976,1725693310417,-500.0,0.00049041,120]
[337484977,1725693310461,-500.0,0.00049041,120]
[337484978,1725693310505,-1321.45,0.00049041,120]
[337484979,1725693310548,-2059.22,0.00049041,120]
[337484980,1725693310594,-1067.64,0.00049041,120]
[337484981,1725693310637,-701.69,0.00049041,120]
[337484982,1725693310682,-1948.29,0.00049041,120]
[337484983,1725693310726,-838.5,0.00049041,120]
[337484984,1725693310772,-500.0,0.00049041,120]
[337484985,1725693310819,-246.73184932,0.00049041,120]
[337484986,1725693310864,-500.0,0.00049041,120]
[337484987,1725693310909,-500.0,0.00049041,120]
[337484988,1725693310955,-500.0,0.00049041,14]
[337484989,1725693311000,-415.77371941,0.00049041,120]
[337484990,1725693311045,-500.0,0.00049041,120]
[337484991,1725693311092,-500.0,0.00049041,120]
[337484992,1725693311137,-500.0,0.00049041,120]
[337484993,1725693311181,-500.0,0.00049041,120]
[337484994,1725693311225,-4335.74,0.00049041,120]
[337484995,1725693311271,-500.0,0.00049041,120]
[337484996,1725693311314,-999.0,0.00049041,120]
[337484997,1725693311357,-1444.25,0.00049041,120]
[337484998,1725693311403,-519.45,0.00049041,120]
[337484999,1725693311449,-605.0,0.000491,30]
[337485000,1725693311494,-500.0,0.00049315,120]
[337485001,1725693311540,-276.31582919,0.00049315,120]
[337485002,1725693311659,-1568.73,0.00049315,120]
[337485003,1725693311707,-506.59277208,0.00049315,120]
[337485004,1725693311753,-648.8227816,0.00049315,120]
[337485005,1725693311796,-500.0,0.00049315,120]
[337485006,1725693311838,-1429.18,0.00049315,120]
[337485007,1725693311879,-1429.18,0.00049315,120]
[337485008,1725693311924,-1429.18,0.00049315,120]
[337485009,1725693311967,-1429.18,0.00049315,120]
[337485010,1725693312009,-1429.18,0.00049315,120]
[337485011,1725693312051,-1429.18,0.00049315,120]
[337485012,1725693312095,-1429.18,0.00049315,120]
[337485013,1725693312138,-1429.18,0.00049315,120]
[337485014,1725693312181,-1429.18,0.00049315,120]
[337485015,1725693312224,-1429.18,0.00049315,120]
[337485016,1725693312271,-1429.18,0.00049315,120]
[337485017,1725693312315,-3993.05,0.00049315,120]
[337485018,1725693312359,-151.0,0.00049315,120]
[337485019,1725693312402,-151.0,0.00049315,120]
[337485020,1725693312446,-267.407128,0.00049315,120]
[337485021,1725693312489,-267.407128,0.00049315,120]
[337485022,1725693312532,-642.65,0.00049315,120]
[337485023,1725693312575,-1530.68,0.00049315,120]
[337485024,1725693312624,-151.0,0.00049315,120]
[337485025,1725693312666,-500.0,0.00049315,120]
[337485026,1725693312711,-169.382426,0.00049315,120]
[337485027,1725693312756,-169.382426,0.00049315,120]
[337485028,1725693312800,-1200.997584,0.00049315,120]
[337485029,1725693312844,-1200.997584,0.00049315,120]
[337485030,1725693312889,-596.079868,0.00049315,120]
[337485031,1725693312936,-596.079868,0.00049315,120]
[337485032,1725693312981,-256.832796,0.00049315,120]
[337485033,1725693313025,-256.832796,0.00049315,120]
[337485034,1725693313071,-500.0,0.00049315,120]
[337485035,1725693313116,-500.0,0.00049315,120]
[337485036,1725693313159,-500.0,0.00049315,120]
[337485037,1725693313260,-2458.18,0.00049315,120]
[337485038,1725693313318,-180.701741,0.00049315,120]
[337485039,1725693313362,-180.701741,0.00049315,120]
[337485040,1725693313410,-151.0,0.00049315,120]
[337485041,1725693313460,-512.51,0.00049315,120]
[337485042,1725693313507,-151.0,0.00049315,14]
[337485043,1725693313556,-500.0,0.00049315,120]
[337485044,1725693313606,-868.62,0.00049315,120]
[337485045,1725693313653,-199.180226,0.00049315,120]
[337485046,1725693313700,-199.180226,0.00049315,120]
[337485047,1725693313750,-500.0,0.00049315,120]
[337485048,1725693313796,-1209.1,0.00049315,120]
[337485049,1725693313845,-1975.44,0.00049315,120]
[337485050,1725693313891,-725.85,0.00049315,120]
[337485051,1725693313939,-644.36,0.00049315,120]
[337485052,1725693313986,-2573.26,0.00049315,120]
[337485053,1725693314033,-213.422899,0.00049315,120]
[337485054,1725693314081,-500.0,0.00049315,120]
[337485055,1725693314147,-213.422899,0.00049315,120]
[337485056,1725693314220,-1103.35,0.00049315,120]
[337485057,1725693314293,-500.0,0.00049315,120]
[337485058,1725693314356,-616.87,0.00049315,120]
[337485059,1725693314427,-151.0,0.00049315,120]
[337485060,1725693314498,-151.0,0.00049315,120]
[337485061,1725693314561,-296.217334,0.00049315,120]
[337485062,1725693314626,-500.0,0.00049315,120]
[337485063,1725693314692,-500.0,0.00049315,120]
[337485064,1725693314756,-1206.12,0.00049315,120]
[337485065,1725693314817,-584.58,0.00049315,120]
[337485066,1725693314879,-809.31,0.00049315,120]
[337485067,1725693314947,-500.0,0.00049315,120]
[337485068,1725693315015,-151.0,0.00049315,90]
[337485069,1725693315080,-1555.56,0.00049315,120]
[337485070,1725693315144,-1002.74,0.00049315,120]
[337485071,1725693315206,-258.86265487,0.00049315,30]
[337485072,1725693315354,-782.07,0.00049315,120]
[337485073,1725693315403,-1839.15,0.00049315,120]
[337485074,1725693315450,-500.0,0.00049315,120]
[337485075,1725693315498,-500.0,0.00049315,120]
[337485076,1725693315548,-1321.45,0.00049315,120]
[337485077,1725693315595,-2059.22,0.00049315,120]
[337485078,1725693315642,-1067.64,0.00049315,120]
[337485079,1725693315687,-151.0,0.00049315,120]
[337485080,1725693315732,-701.69,0.00049315,120]
[337485081,1725693315784,-1948.29,0.00049315,120]
[337485082,1725693315832,-838.5,0.00049315,120]
[337485083,1725693315878,-539.9384266,0.00049315,120]
[337485084,1725693315926,-500.0,0.00049315,120]
[337485085,1725693315974,-500.0,0.00049315,120]
[337485086,1725693316022,-269.39765354,0.00049315,14]
[337485087,1725693316070,-500.0,0.00049315,120]
[337485088,1725693316118,-500.0,0.00049315,120]
[337485089,1725693316167,-500.0,0.00049315,120]
[337485090,1725693316215,-500.0,0.00049315,120]
[337485091,1725693316263,-4335.74,0.00049315,120]
[337485092,1725693316308,-500.0,0.00049315,120]
[337485093,1725693316354,-999.0,0.00049315,120]
[337485094,1725693316399,-1444.25,0.00049315,120]
[337485095,1725693316445,-519.45,0.00049315,120]
[337485096,1725693316490,-158.686809,0.00049589,120]
[337485097,1725693316536,-158.686809,0.00049589,120]
[337485098,1725693316580,-500.0,0.00049589,120]
[337485099,1725693316627,-1568.73,0.00049589,120]
[337485100,1725693316672,-500.0,0.00049589,120]
[337485101,1725693316716,-1429.18,0.00049589,120]
[337485102,1725693316759,-3993.05,0.00049589,120]
[337485103,1725693316801,-151.0,0.00049589,120]
[337485104,1725693316845,-642.65,0.00049589,120]
[337485105,1725693316888,-1530.68,0.00049589,120]
[337485106,1725693316938,-154.8855,0.00049589,120]
[337485107,1725693317064,-197.981654,0.00049589,120]
[337485108,1725693317111,-197.981654,0.00049589,120]
[337485109,1725693317156,-172.680464,0.00049589,120]
[337485110,1725693317200,-172.680464,0.00049589,120]
[337485111,1725693317247,-500.0,0.00049589,120]
[337485112,1725693317294,-500.0,0.00049589,120]
[337485113,1725693317344,-500.0,0.00049589,120]
[337485114,1725693317392,-500.0,0.00049589,120]
[337485115,1725693317437,-2458.18,0.00049589,120]
[337485116,1725693317483,-512.51,0.00049589,120]
[337485117,1725693317527,-500.0,0.00049589,120]
[337485118,1725693317574,-868.62,0.00049589,120]
[337485119,1725693317623,-500.0,0.00049589,120]
[337485120,1725693317671,-1209.1,0.00049589,120]
[337485121,1725693317722,-1975.44,0.00049589,120]
[337485122,1725693317777,-725.85,0.00049589,120]
[337485123,1725693317825,-644.36,0.00049589,120]
[337485124,1725693317874,-2573.26,0.00049589,120]
[337485125,1725693317922,-500.0,0.00049589,120]
[337485126,1725693317969,-1103.35,0.00049589,120]
[337485127,1725693318015,-500.0,0.00049589,120]
[337485128,1725693318063,-151.0,0.00049589,120]
[337485129,1725693318111,-151.0,0.00049589,120]
[337485130,1725693318168,-616.87,0.00049589,120]
[337485131,1725693318215,-500.0,0.00049589,120]
[337485132,1725693318263,-500.0,0.00049589,120]
[337485133,1725693318311,-1206.12,0.00049589,120]
[337485134,1725693318360,-584.58,0.00049589,120]
[337485135,1725693318408,-809.31,0.00049589,120]
[337485136,1725693318455,-251.8862346,0.00049589,120]
[337485137,1725693318502,-1555.56,0.00049589,120]
[337485138,1725693318550,-1002.74,0.00049589,120]
[337485139,1725693318597,-782.07,0.00049589,120]
[337485140,1725693318649,-1839.15,0.00049589,120]
[337485141,1725693318699,-3132.2625,0.00049589,120]
[337485142,1725693318749,-500.0,0.00049589,120]
[337485143,1725693318799,-500.0,0.00049589,120]
[337485144,1725693318849,-1321.45,0.00049589,120]
[337485145,1725693318906,-2059.22,0.00049589,120]
[337485146,1725693318955,-1067.64,0.00049589,120]
[337485147,1725693319003,-1948.29,0.00049589,120]
[337485148,1725693319049,-701.69,0.00049589,120]
[337485149,1725693319096,-838.5,0.00049589,120]
[337485150,1725693319142,-500.0,0.00049589,120]
[337485151,1725693319192,-500.0,0.00049589,120]
[337485152,1725693319237,-500.0,0.00049589,120]
[337485153,1725693319282,-500.0,0.00049589,120]
[337485154,1725693319327,-500.0,0.00049589,120]
[337485155,1725693319376,-600.5046973,0.00049589,120]
[337485156,1725693319426,-4335.74,0.00049589,120]
[337485157,1725693319478,-500.0,0.00049589,120]
[337485158,1725693319531,-999.0,0.00049589,120]
[337485159,1725693319673,-1444.25,0.00049589,120]
[337485160,1725693319725,-519.45,0.00049589,120]
[337485161,1725693319776,-157.8782588,0.000497,120]
[337485162,1725693319825,-531.24323654,0.00049789,30]
[337485163,1725693319869,-500.0,0.00049863,120]
[337485164,1725693319918,-1568.73,0.00049863,120]
[337485165,1725693319982,-500.0,0.00049863,120]
[337485166,1725693320034,-1429.18,0.00049863,120]
[337485167,1725693320082,-3993.05,0.00049863,120]
[337485168,1725693320130,-642.65,0.00049863,120]
[337485169,1725693320178,-1530.68,0.00049863,120]
[337485170,1725693320226,-500.0,0.00049863,120]
[337485171,1725693320271,-500.0,0.00049863,120]
[337485172,1725693320319,-425.88521959,0.00049863,120]
[337485173,1725693320367,-500.0,0.00049863,120]
[337485174,1725693320413,-2458.18,0.00049863,120]
[337485175,1725693320459,-512.51,0.00049863,120]
[337485176,1725693320507,-607.15158066,0.00049863,120]
[337485177,1725693320556,-868.62,0.00049863,120]
[337485178,1725693320603,-500.0,0.00049863,120]
[337485179,1725693320650,-1209.1,0.00049863,120]
[337485180,1725693320698,-1975.44,0.00049863,120]
[337485181,1725693320746,-725.85,0.00049863,120]
[337485182,1725693320796,-644.36,0.00049863,120]
[337485183,1725693320845,-2573.26,0.00049863,120]
[337485184,1725693320893,-500.0,0.00049863,120]
[337485185,1725693320946,-1103.35,0.00049863,120]
[337485186,1725693320994,-500.0,0.00049863,120]
[337485187,1725693321044,-616.87,0.00049863,120]
[337485188,1725693321091,-500.0,0.00049863,120]
[337485189,1725693321137,-500.0,0.00049863,120]
[337485190,1725693321187,-1206.12,0.00049863,120]
[337485191,1725693321234,-584.58,0.00049863,120]
[337485192,1725693321292,-809.31,0.00049863,120]
[337485193,1725693321339,-1555.56,0.00049863,120]
[337485194,1725693321384,-1002.74,0.00049863,120]
[337485195,1725693321432,-782.07,0.00049863,120]
[337485196,1725693321481,-1839.15,0.00049863,120]
[337485197,1725693321537,-318.79846981,0.00049863,120]
[337485198,1725693321586,-500.0,0.00049863,120]
[337485199,1725693321638,-1321.45,0.00049863,120]
[337485200,1725693321686,-2059.22,0.00049863,120]
[337485201,1725693321732,-1067.64,0.00049863,120]
[337485202,1725693321783,-1948.29,0.00049863,120]
[337485203,1725693321828,-701.69,0.00049863,120]
[337485204,1725693321873,-838.5,0.00049863,120]
[337485205,1725693321920,-500.0,0.00049863,120]
[337485206,1725693321964,-500.0,0.00049863,120]
[337485207,1725693322010,-199.50425638,0.00049863,120]
[337485208,1725693322053,-500.0,0.00049863,120]
[337485209,1725693322099,-252.99076965,0.00049863,120]
[337485210,1725693322147,-4335.74,0.00049863,120]
[337485211,1725693322194,-500.0,0.00049863,120]
[337485212,1725693322242,-856.20108664,0.00049863,120]
[337485213,1725693322294,-1444.25,0.00049863,120]
[337485214,1725693322342,-519.45,0.00049863,120]
[337485215,1725693322389,-308.0532,0.000499,30]
[337485216,1725693322436,-500.0,0.00049977,18]
[337485217,1725693322483,-40029.84011697,0.0005,30]
[337485218,1725693322532,-889.60727536,0.0005,120]
[337485219,1725693322578,-1000.0,0.0005,120]
[337485220,1725693322626,-1000.0,0.0005,120]
[337485221,1725693322673,-1000.0,0.0005,120]
[337485222,1725693322719,-1000.0,0.0005,120]
[337485223,1725693322766,-1000.0,0.0005,120]
[337485224,1725693322812,-1000.0,0.0005,120]
[337485225,1725693322856,-1000.0,0.0005,120]
[337485226,1725693322899,-200.0,0.0005,30]
[337485227,1725693322943,-500.0,0.0005,120]
[337485228,1725693322995,-600.0,0.0005,120]
[337485230,1725693323040,-151.0,0.0005,120]
[337485231,1725693323085,-169.382426,0.0005,120]
[337485232,1725693323130,-169.382426,0.0005,120]
[337485233,1725693323293,-1200.997584,0.0005,120]
[337485234,1725693323339,-1200.997584,0.0005,120]
[337485235,1725693323388,-596.079868,0.0005,120]
[337485236,1725693323436,-596.079868,0.0005,120]
[337485237,1725693323482,-589.0,0.0005,14]
[337485238,1725693323528,-256.832796,0.0005,120]
[337485239,1725693323574,-256.832796,0.0005,120]
[337485240,1725693323626,-213.422899,0.0005,120]
[337485241,1725693323673,-213.422899,0.0005,120]
[337485242,1725693323722,-151.0,0.0005,120]
[337485243,1725693323769,-151.0,0.0005,120]
[337485244,1725693323817,-151.0,0.0005,90]
[337485245,1725693323864,-151.0,0.0005,120]
[337485246,1725693323909,-158.686809,0.00050136,120]
[337485247,1725693323956,-158.686809,0.00050136,120]
[337485248,1725693324005,-500.0,0.00050136,120]
[337485249,1725693324059,-1568.73,0.00050136,120]
[337485250,1725693324108,-500.0,0.00050136,120]
[337485251,1725693324155,-1429.18,0.00050136,120]
[337485252,1725693324198,-3993.05,0.00050136,120]
[337485253,1725693324242,-221.5695,0.00050136,120]
[337485254,1725693324284,-151.0,0.00050136,120]
[337485255,1725693324326,-151.0,0.00050136,120]
[337485256,1725693324370,-267.407128,0.00050136,120]
[337485257,1725693324412,-267.407128,0.00050136,120]
[337485258,1725693324455,-642.65,0.00050136,120]
[337485259,1725693324501,-1530.68,0.00050136,120]
[337485260,1725693324546,-197.981654,0.00050136,120]
[337485261,1725693324591,-197.981654,0.00050136,120]
[337485262,1725693324635,-172.680464,0.00050136,120]
[337485263,1725693324677,-172.680464,0.00050136,120]
[337485264,1725693324722,-151.0,0.00050136,120]
[337485265,1725693324767,-594.45244305,0.00050136,120]
[337485266,1725693324810,-544.42396155,0.00050136,120]
[337485267,1725693324854,-500.0,0.00050136,120]
[337485268,1725693324900,-2458.18,0.00050136,120]
[337485269,1725693324948,-180.701741,0.00050136,120]
[337485270,1725693324994,-180.701741,0.00050136,120]
[337485271,1725693325040,-151.0,0.00050136,120]
[337485272,1725693325085,-512.51,0.00050136,120]
[337485273,1725693325128,-187.319679,0.00050136,14]
[337485274,1725693325174,-868.62,0.00050136,120]
[337485275,1725693325217,-199.180226,0.00050136,120]
[337485276,1725693325259,-199.180226,0.00050136,120]
[337485277,1725693325301,-500.0,0.00050136,120]
[337485278,1725693325343,-1209.1,0.00050136,120]
[337485279,1725693325388,-1975.44,0.00050136,120]
[337485280,1725693325432,-725.85,0.00050136,120]
[337485281,1725693325478,-644.36,0.00050136,120]
[337485282,1725693325520,-2573.26,0.00050136,120]
[337485283,1725693325564,-531.08337674,0.00050136,120]
[337485284,1725693325608,-1103.35,0.00050136,120]
[337485285,1725693325651,-500.0,0.00050136,120]
[337485286,1725693325696,-151.0,0.00050136,120]
[337485287,1725693325741,-299.250112,0.00050136,120]
[337485288,1725693325789,-616.87,0.00050136,120]
[337485289,1725693325835,-500.0,0.00050136,120]
[337485290,1725693325879,-500.0,0.00050136,120]
[337485291,1725693325925,-1206.12,0.00050136,120]
[337485292,1725693325970,-584.58,0.00050136,120]
[337485293,1725693326016,-809.31,0.00050136,120]
[337485294,1725693326061,-1555.56,0.00050136,120]
[337485295,1725693326104,-1002.74,0.00050136,120]
[337485296,1725693326146,-782.07,0.00050136,120]
[337485297,1725693326200,-1839.15,0.00050136,120]
[337485299,1725693326244,-3758.715,0.00050136,120]
[337485300,1725693326292,-500.0,0.00050136,120]
[337485301,1725693326336,-1321.45,0.00050136,120]
[337485302,1725693326382,-2059.22,0.00050136,120]
[337485303,1725693326429,-1067.64,0.00050136,120]
[337485304,1725693326474,-1948.29,0.00050136,120]
[337485305,1725693326519,-701.69,0.00050136,120]
[337485306,1725693326562,-838.5,0.00050136,120]
[337485307,1725693326605,-500.0,0.00050136,120]
[337485308,1725693326647,-500.0,0.00050136,120]
[337485309,1725693326693,-500.0,0.00050136,120]
[337485310,1725693326741,-4335.74,0.00050136,120]
[337485311,1725693326786,-300.22150079,0.00050136,120]
[337485312,1725693326829,-1444.25,0.00050136,120]
[337485313,1725693326872,-519.45,0.00050136,120]
[337485314,1725693326915,-500.0,0.0005041,120]
[337485315,1725693326961,-1568.73,0.0005041,120]
[337485316,1725693327006,-500.0,0.0005041,120]
[337485317,1725693327050,-1429.18,0.0005041,120]
[337485318,1725693327095,-3993.05,0.0005041,120]
[337485319,1725693327138,-642.65,0.0005041,120]
[337485320,1725693327180,-1530.68,0.0005041,120]
[337485321,1725693327322,-356.04052872,0.0005041,120]
[337485322,1725693327374,-2458.18,0.0005041,120]
[337485323,1725693327421,-512.51,0.0005041,120]
[337485324,1725693327471,-868.62,0.0005041,120]
[337485325,1725693327520,-500.0,0.0005041,120]
[337485326,1725693327568,-1209.1,0.0005041,120]
[337485327,1725693327620,-1975.44,0.0005041,120]
[337485328,1725693327671,-725.85,0.0005041,120]
[337485329,1725693327722,-644.36,0.0005041,120]
[337485330,1725693327767,-2573.26,0.0005041,120]
[337485331,1725693327811,-1103.35,0.0005041,120]
[337485332,1725693327854,-500.0,0.0005041,120]
[337485333,1725693327899,-616.87,0.0005041,120]
[337485334,1725693327946,-500.0,0.0005041,120]
[337485335,1725693327992,-500.0,0.0005041,120]
[337485336,1725693328037,-1206.12,0.0005041,120]
[337485337,1725693328082,-584.58,0.0005041,120]
[337485338,1725693328125,-809.31,0.0005041,120]
[337485339,1725693328168,-1555.56,0.0005041,120]
[337485340,1725693328213,-1002.74,0.0005041,120]
[337485341,1725693328258,-782.07,0.0005041,120]
[337485342,1725693328304,-1839.15,0.0005041,120]
[337485343,1725693328347,-500.0,0.0005041,120]
[337485344,1725693328393,-1321.45,0.0005041,120]
[337485345,1725693328436,-2059.22,0.0005041,120]
[337485346,1725693328481,-1067.64,0.0005041,120]
[337485347,1725693328530,-1948.29,0.0005041,120]
[337485348,1725693328576,-701.69,0.0005041,120]
[337485349,1725693328623,-838.5,0.0005041,120]
[337485350,1725693328668,-500.0,0.0005041,120]
[337485351,1725693328712,-500.0,0.0005041,120]
[337485352,1725693328757,-500.0,0.0005041,120]
[337485353,1725693328802,-4335.74,0.0005041,120]
[337485354,1725693328849,-1444.25,0.0005041,120]
[337485355,1725693328895,-519.45,0.0005041,120]
[337485356,1725693328941,-523.0,0.00050513,120]
[337485357,1725693328987,-150.0,0.00050513,120]
[337485358,1725693329032,-500.0,0.00050684,120]
[337485359,1725693329075,-1568.73,0.00050684,120]
[337485360,1725693329117,-495.89220561,0.00050684,120]
[337485361,1725693329158,-1429.18,0.00050684,120]
[337485362,1725693329203,-3993.05,0.00050684,120]
[337485363,1725693329245,-642.65,0.00050684,120]
[337485364,1725693329291,-1530.68,0.00050684,120]
[337485365,1725693329334,-2458.18,0.00050684,120]
[337485366,1725693329383,-512.51,0.00050684,120]
[337485367,1725693329432,-868.62,0.00050684,120]
[337485368,1725693329483,-500.0,0.00050684,120]
[337485370,1725693329528,-1209.1,0.00050684,120]
[337485371,1725693329576,-1975.44,0.00050684,120]
[337485372,1725693329625,-2000.0,0.00050684,120]
[337485373,1725693329670,-1500.51552603,0.00050684,120]
[337485374,1725693329718,-725.85,0.00050684,120]
[337485375,1725693329766,-644.36,0.00050684,120]
[337485376,1725693329810,-2573.26,0.00050684,120]
[337485377,1725693329855,-213.422899,0.00050684,120]
[337485378,1725693329898,-213.422899,0.00050684,120]
[337485379,1725693329942,-1103.35,0.00050684,120]
[337485380,1725693329987,-492.52696612,0.00050684,120]
[337485381,1725693330032,-616.87,0.00050684,120]
[337485382,1725693330078,-151.0,0.00050684,120]
[337485383,1725693330121,-151.0,0.00050684,120]
[337485384,1725693330165,-500.0,0.00050684,120]
[337485385,1725693330208,-500.0,0.00050684,120]
[337485386,1725693330251,-1206.12,0.00050684,120]
[337485387,1725693330301,-584.58,0.00050684,120]
[337485388,1725693330346,-809.31,0.00050684,120]
[337485389,1725693330392,-151.0,0.00050684,90]
[337485390,1725693330440,-1555.56,0.00050684,120]
[337485391,1725693330488,-1002.74,0.00050684,120]
[337485392,1725693330537,-782.07,0.00050684,120]
[337485393,1725693330585,-4385.1675,0.00050684,120]
[337485394,1725693330636,-1839.15,0.00050684,120]
[337485395,1725693330685,-500.0,0.00050684,120]
[337485396,1725693330732,-1321.45,0.00050684,120]
[337485397,1725693330780,-151.0,0.00050684,120]
[337485398,1725693330828,-2059.22,0.00050684,120]
[337485399,1725693330874,-1067.64,0.00050684,120]
[337485400,1725693330922,-1948.29,0.00050684,120]
[337485401,1725693330970,-701.69,0.00050684,120]
[337485402,1725693331016,-838.5,0.00050684,120]
[337485403,1725693331062,-500.0,0.00050684,120]
[337485404,1725693331109,-500.0,0.00050684,120]
[337485405,1725693331153,-500.0,0.00050684,120]
[337485406,1725693331199,-4335.74,0.00050684,120]
[337485407,1725693331348,-1444.25,0.00050684,120]
[337485408,1725693331395,-519.45,0.00050684,120]
[337485409,1725693331439,-500.0,0.00050958,120]
[337485410,1725693331484,-1568.73,0.00050958,120]
[337485411,1725693331527,-1429.18,0.00050958,120]
[337485412,1725693331573,-3993.05,0.00050958,120]
[337485413,1725693331619,-151.0,0.00050958,120]
[337485414,1725693331665,-203.834478,0.00050958,120]
[337485415,1725693331708,-267.407128,0.00050958,120]
[337485416,1725693331754,-267.407128,0.00050958,120]
[337485417,1725693331798,-642.65,0.00050958,120]
[337485418,1725693331843,-1530.68,0.00050958,120]
[337485419,1725693331887,-151.0,0.00050958,120]
[337485420,1725693331933,-169.382426,0.00050958,120]
[337485421,1725693331977,-169.382433,0.00050958,120]
[337485422,1725693332020,-1200.997584,0.00050958,120]
[337485423,1725693332064,-1200.99759,0.00050958,120]
[337485424,1725693332111,-596.079868,0.00050958,120]
[337485425,1725693332156,-596.079858,0.00050958,120]
[337485426,1725693332201,-256.832796,0.00050958,120]
[337485427,1725693332244,-256.832803,0.00050958,120]
[337485428,1725693332289,-2458.18,0.00050958,120]
[337485429,1725693332333,-180.701741,0.00050958,120]
[337485430,1725693332376,-180.701736,0.00050958,120]
[337485431,1725693332419,-154.556085,0.00050958,120]
[337485432,1725693332464,-512.51,0.00050958,120]
[337485433,1725693332510,-199.180226,0.00050958,120]
[337485434,1725693332556,-868.62,0.00050958,120]
[337485435,1725693332601,-199.180232,0.00050958,120]
[337485436,1725693332646,-500.0,0.00050958,120]
[337485437,1725693332691,-1209.1,0.00050958,120]
[337485438,1725693332736,-1975.44,0.00050958,120]
[337485439,1725693332780,-725.85,0.00050958,120]
[337485440,1725693332826,-644.36,0.00050958,120]
[337485441,1725693332875,-2573.26,0.00050958,120]
[337485442,1725693332918,-1103.35,0.00050958,120]
[337485443,1725693332961,-616.87,0.00050958,120]
[337485444,1725693333004,-500.0,0.00050958,120]
[337485445,1725693333048,-500.0,0.00050958,120]
[337485446,1725693333097,-1206.12,0.00050958,120]
[337485447,1725693333145,-584.58,0.00050958,120]
[337485448,1725693333191,-809.31,0.00050958,120]
[337485449,1725693333239,-1555.56,0.00050958,120]
[337485451,1725693333295,-1002.74,0.00050958,120]
[337485452,1725693333341,-782.07,0.00050958,120]
[337485453,1725693333394,-1839.15,0.00050958,120]
[337485454,1725693333444,-500.0,0.00050958,120]
[337485455,1725693333496,-1321.45,0.00050958,120]
[337485456,1725693333546,-2059.22,0.00050958,120]
[337485457,1725693333599,-1067.64,0.00050958,120]
[337485458,1725693333650,-1948.29,0.00050958,120]
[337485459,1725693333701,-701.69,0.00050958,120]
[337485460,1725693333749,-838.5,0.00050958,120]
[337485461,1725693333798,-500.0,0.00050958,120]
[337485462,1725693333842,-500.0,0.00050958,120]
[337485463,1725693333893,-271.02154147,0.00050958,120]
[337485464,1725693333941,-4335.74,0.00050958,120]
[337485465,1725693333990,-1444.25,0.00050958,120]
[337485466,1725693334040,-519.45,0.00050958,120]
[337485467,1725693334086,-1000.0,0.00051,120]
[337485468,1725693334129,-3000.0,0.00051,85]
[337485469,1725693334172,-3000.0,0.0005101,85]
[337485470,1725693334217,-3000.0,0.0005102,85]
[337485471,1725693334264,-151.0,0.0005103,120]
[337485472,1725693334308,-3000.0,0.0005103,85]
[337485473,1725693334353,-3000.0,0.0005104,85]
[337485474,1725693334396,-158.686809,0.0005105,120]
[337485475,1725693334440,-158.686809,0.0005105,120]
[337485476,1725693334487,-197.981654,0.0005105,120]
[337485477,1725693334535,-197.981654,0.0005105,120]
[337485478,1725693334584,-172.680464,0.0005105,120]
[337485479,1725693334633,-172.680464,0.0005105,120]